Cogmind - Beta 10.2 @@@ ROGUE MODE // 2021.02.22 @ 14:42:42 Player: cavemonk Result: Destroyed by P1-3CE with P1-3CE's Gatling Flakker Performance ------------- Evolutions (1) 500 Regions Visited (5) 1000 Robots Destroyed (41) 205 Value Destroyed (1036) 1036 Prototype IDs (25) 500 Alien Tech Used (0) 0 Bonus (207) 207 TOTAL SCORE: 3448 Bonus ------- Aligned with FarCom 300 Friendly Fire -93 Cogmind --------- Core Integrity 0/400 Matter 171/300 Energy 90/100 System Corruption 0% Temperature Cool (0) Movement Core (450) Ox8 Location -8/Mines Parts ------- > --- POWER (1) -------- (None) > --- PROPULSION (2) --- (None) > --- UTILITY (4) ------ Improved Heat Sink Medium Storage Unit Medium Storage Unit Medium Storage Unit > --- WEAPON (2) ------- (None) > --- INVENTORY (16) --- Deuterium Engine Improved Heat Sink Large Matter Pod (150) Advanced Signal Interpreter Advanced Signal Interpreter Advanced Signal Interpreter Advanced Signal Interpreter Hardened Light Armor Plating Hacking Suite Advanced Beam Cannon Advanced Beam Cannon Improved Assault Rifle Rocket Launcher Peak State ------------ > --- POWER ------------ Deuterium Engine > --- PROPULSION ------- Light Treads Wheel > --- UTILITY ---------- Medium Storage Unit Medium Storage Unit Improved Utility Shielding Improved Utility Shielding > --- WEAPON ----------- Advanced Beam Cannon Advanced Beam Cannon > --- INVENTORY -------- Deuterium Engine Deuterium Engine Deuterium Engine Light Treads Compact Wheel Improved Heat Sink Large Matter Pod Advanced Signal Interpreter Advanced Signal Interpreter Advanced Signal Interpreter Improved Utility Shielding Improved Utility Shielding [Rating: 22] Favorites ----------- Power Deuterium Engine Engine Deuterium Engine Propulsion Light Treads Treads Light Treads Leg Aluminum Leg Wheel Wheel Utility Medium Storage Unit Device Improved Heat Sink Storage Medium Storage Unit Protection Improved Utility Shielding Weapon Improved Assault Rifle Energy Gun Medium Laser Energy Cannon Advanced Beam Cannon Ballistic Gun Improved Assault Rifle Ballistic Cannon Light Cannon Launcher Rocket Launcher Build | -11 -10 -9 -9 -9 -8 ------- Run | Scr Mat Mat Min Exi Min Slots Evolved 2 | . . 2 . . . Power . | . . . . . . Propulsion . | . . . . . . Utility 2 | . . 2 . . . Weapon . | . . . . . . Parts Attached 40 | 2 10 20 4 . 4 Power 3 | . 1 2 . . . Engine 3 | . 1 2 . . . Core . | . . . . . . Reactor . | . . . . . . Propulsion 15 | 2 4 5 2 . 2 Treads 12 | 1 2 5 2 . 2 Leg . | . . . . . . Wheel 3 | 1 2 . . . . Hover . | . . . . . . Flight . | . . . . . . Utility 7 | . 2 5 . . . Device 1 | . . 1 . . . Storage 3 | . 2 1 . . . Processor . | . . . . . . Hackware . | . . . . . . Protection 3 | . . 3 . . . Artifact . | . . . . . . Weapon 15 | . 3 8 2 . 2 Energy Gun 1 | . 1 . . . . Energy Cannon 2 | . . 2 . . . Ballistic Gun 10 | . 2 5 1 . 2 Ballistic Cannon 1 | . . 1 . . . Launcher 1 | . . . 1 . . Special Weapon . | . . . . . . Impact Weapon . | . . . . . . Slashing Weapon . | . . . . . . Piercing Weapon . | . . . . . . Special Melee Weapon . | . . . . . . Unidentified Prototypes 2 | . . 2 . . . Parts Lost 11 | . 2 . 1 1 7 Power 2 | . 1 . . . 1 Propulsion 4 | . . . . 1 3 Utility . | . . . . . . Weapon 5 | . 1 . 1 . 3 Highest Loss Streak 7 | . 2 . 1 1 7 Average Slot Usage (%) 97 | . 97 93 100 98 88 Engine 11 | . 13 11 11 11 . Treads 19 | . 17 17 22 20 22 Wheel 2 | . 10 4 . . . Device 8 | . . 6 11 11 11 Storage 30 | . 27 27 33 33 33 Protection 1 | . . 4 . . . Energy Gun 1 | . 10 . . . . Energy Cannon 1 | . . 5 . . . Ballistic Gun 14 | . 16 15 14 11 22 Launcher 4 | . . . 7 11 . Naked Turns . | . . . . . . Heaviest Build 41 | 12 25 40 41 41 . Greatest Support 40 | 20 40 40 40 40 . Greatest Overweight (x) 2 | . 2 2 1 2 . Average Overweight (x) . | . 1 . . 1 . Largest Inventory Capacity 16 | 6 12 16 16 16 16 Average Capacity 14 | 6 11 13 16 16 16 Most Carried 16 | 6 8 16 16 16 16 Average Carried 13 | 6 7 12 15 16 14 Final Capacity 16 | 6 12 16 16 16 16 Final Carried 16 | 6 6 16 16 16 13 Class Distribution -------------------- 100% | Mutant Dominant Class ---------------- Mutant | -10/Materials Mutant | -9/Materials Mutant | -9/Mines Mutant | -9/Exiles Mutant | -8/Mines Resources | -11 -10 -9 -9 -9 -8 ----------- Run | Scr Mat Mat Min Exi Min Matter Collected 1307 | 220 310 508 269 . . Remotely . | . . . . . . Salvage Created 1686 | . 333 859 487 7 . Parts 85 | . 11 56 18 . . Haulers Intercepted 4 | . . 4 . . . Recyclers Shooed 4 | . 1 1 2 . . Parts Field Recycled . | . . . . . . Retrieved Matter . | . . . . . . Parts Self-Destructed . | . . . . . . Prevented . | . . . . . . Kills | -11 -10 -9 -9 -9 -8 ------- Run | Scr Mat Mat Min Exi Min Combat Hostiles Destroyed 31 | . 5 10 10 6 . Guns 21 | . 5 8 8 . . Cannons 2 | . . 2 . . . AOE 8 | . . . 2 6 . Classes Destroyed 12 | . 2 5 4 1 . Worker 1 | . . . 1 . . Builder 3 | . . 3 . . . Tunneler 1 | . . . 1 . . Hauler 4 | . . 4 . . . Recycler 5 | . 2 2 1 . . Operator 1 | . . 1 . . . Watcher 1 | . . 1 . . . Swarmer 2 | . . . 2 . . Grunt 19 | . 5 7 7 . . Duelist 1 | . . . 1 . . Sentry 3 | . . 3 . . . Assembled 6 | . . . . 6 . Best Kill Streak 6 | . 3 6 4 6 . Combat Bots Only 6 | . 3 3 3 6 . Max Kills in Single Turn 3 | . 1 1 1 3 . Gunslinging . | . . . . . . Exploded 3 | . . . 1 3 . Melee . | . . . . . . Uniques/NPCs Destroyed . | . . . . . . Combat | -11 -10 -9 -9 -9 -8 -------- Run | Scr Mat Mat Min Exi Min Damage Taken 2782 | . 328 733 448 335 938 Core 444 | . 32 139 36 29 208 Absorbed by Shields . | . . . . . . Core Remaining (%) 93 | 100 87 . . . . Volleys Fired 141 | . 26 63 39 10 3 Largest 2 | . 2 2 2 1 2 Hottest 136 | . 70 136 46 33 46 Shots Fired 264 | . 49 126 74 10 5 Gun 215 | . 49 90 71 . 5 Cannon 36 | . . 36 . . . Launcher 13 | . . . 3 10 . Special . | . . . . . . Kinetic 204 | . 30 98 71 . 5 Thermal 47 | . 19 28 . . . Explosive 13 | . . . 3 10 . Electromagnetic . | . . . . . . Robot Hit Streak 25 | . 16 25 14 2 7 Robot Miss Streak 3 | . 1 2 3 2 . Penetration Max . | . . . . . . Secondary Targets 2 | . . . 2 . . Max Gunslinging Chain 1 | . . . 1 . . Shots Hit Robots 194 | . 36 94 54 5 5 Core Hits 76 | . 15 33 19 9 . Critical Hits 5 | . . 5 . . . Critical Kills 2 | . . 2 . . . Critical Parts Destroyed 3 | . . 3 . . . Melee Attacks . | . . . . . . Impact . | . . . . . . Slashing . | . . . . . . Piercing . | . . . . . . Sneak Attacks . | . . . . . . Combat Hostiles . | . . . . . . Follow-up Attacks . | . . . . . . Damage Inflicted 3474 | . 415 1395 1050 545 69 Guns 2213 | . 410 1004 730 . 69 Cannons 388 | . . 388 . . . Explosions 846 | . . . 301 545 . Melee . | . . . . . . Ramming 27 | . 5 3 19 . . Kinetic 2022 | . 184 1039 730 . 69 Thermal 579 | . 226 353 . . . Explosive 846 | . . . 301 545 . Electromagnetic . | . . . . . . Impact . | . . . . . . Slashing . | . . . . . . Piercing . | . . . . . . Highest Corruption . | . . . . . . Average Corruption . | . . . . . . Corruption Purged . | . . . . . . Overload Shots . | . . . . . . Overflow Damage 90 | . . 1 72 17 . Projectiles 1 | . . 1 . . . Explosions 89 | . . . 72 17 . Melee . | . . . . . . Knockbacks . | . . . . . . Impact . | . . . . . . Kinetic . | . . . . . . Secondary . | . . . . . . Self-Inflicted Damage 171 | . 2 . . 169 . Shots 4 | . . . . 4 . Rammed 5 | . 1 1 3 . . Targets Rammed 6 | . 1 1 4 . . Kicked . | . . . . . . Crushed 1 | . . . 1 . . Highest Temperature 216 | . 183 216 . . . Average Temperature 77 | . 68 84 . . . Received Heat Transfer 731 | . 180 303 228 20 . Siege Activations . | . . . . . . Robots Corrupted . | . . . . . . Combat Hostiles . | . . . . . . Parts Fried . | . . . . . . Impact Corruptions . | . . . . . . Robots Melted . | . . . . . . Combat Hostiles . | . . . . . . Parts Melted 1 | . . 1 . . . Heat Transferred 1295 | . 666 629 . . . Parts Sabotaged . | . . . . . . Parts Stolen . | . . . . . . Parts Stripped . | . . . . . . Power Chain Reactions . | . . . . . . Missiles Intercepted . | . . . . . . Alert | -11 -10 -9 -9 -9 -8 ------- Run | Scr Mat Mat Min Exi Min Peak Influence 318 | . 185 318 289 . . Initial 99 | . . 78 99 . . Average 137 | . 67 174 133 . . Maximum Alert Level 1 | . . 1 1 . . Low Security (%) 75 | 100 100 68 72 . 100 Level 1 24 | . . 31 27 . . Level 2 . | . . . . . . Level 3 . | . . . . . . Level 4 . | . . . . . . Level 5 . | . . . . . . High Security . | . . . . . . Max Security . | . . . . . . Squads Dispatched 4 | . 2 2 . . . Investigation 2 | . 1 1 . . . Extermination . | . . . . . . Reinforcement 2 | . 1 1 . . . Assault . | . . . . . . Garrison . | . . . . . . Intercept . | . . . . . . Construction Impeded . | . . . . . . Haulers Reinforced . | . . . . . . Stealth | -11 -10 -9 -9 -9 -8 --------- Run | Scr Mat Mat Min Exi Min Distress Signals 4 | . 1 3 . . . Communications Jammed . | . . . . . . Distress Signals . | . . . . . . Times Spotted 49 | . 6 25 9 7 2 Peak Tracking Total 10 | . 4 4 3 10 1 Tactical Retreats 5 | . . 2 2 1 . Traps | -11 -10 -9 -9 -9 -8 ------- Run | Scr Mat Mat Min Exi Min Traps Triggered 2 | . 1 1 . . . Indirectly . | . . . . . . Trap Hack Attempts . | . . . . . . Triggered . | . . . . . . Disarmed . | . . . . . . Reprogrammed 6 | . . 6 . . . Reused 1 | . . 1 . . . Traps Extracted . | . . . . . . Installed . | . . . . . . Triggered 1 | . . 1 . . . Machines | -11 -10 -9 -9 -9 -8 ---------- Run | Scr Mat Mat Min Exi Min Machines Disabled 7 | . . 3 . 4 . Max in Single Turn 2 | . . 1 . 2 . Machines Sabotaged . | . . . . . . Garrisons Compromised . | . . . . . . Overloaded Fab Kills . | . . . . . . Fab Network Shutdowns . | . . . . . . Hacking | -11 -10 -9 -9 -9 -8 --------- Run | Scr Mat Mat Min Exi Min Machines Accessed 7 | . 1 5 . 1 . Terminals 2 | . . 2 . . . Fabricators . | . . . . . . Repair Stations 1 | . . 1 . . . Recycling Units 1 | . 1 . . . . Scanalyzers 2 | . . 2 . . . Garrison Access . | . . . . . . Total Hacks 18 | . 3 14 . 1 . Successful 12 | . 1 10 . 1 . Failed 6 | . 2 4 . . . Catastrophic . | . . . . . . Database Lockouts . | . . . . . . Manual 5 | . 1 3 . 1 . Terminals 5 | . . 5 . . . Fabricators . | . . . . . . Repair Stations 2 | . . 2 . . . Recycling Units 3 | . 3 . . . . Scanalyzers 7 | . . 7 . . . Garrison Access . | . . . . . . Terminal Hacks 2 | . . 1 . 1 . Reprogram Traps 1 | . . 1 . . . EX-Prototype ID Bank 1 | . . . . 1 . Fabricator Hacks . | . . . . . . Repair Station Hacks 2 | . . 2 . . . Scan Component 1 | . . 1 . . . Repair 1 | . . 1 . . . Recycling Unit Hacks . | . . . . . . Scanalyzer 6 | . . 6 . . . Insert Component 3 | . . 3 . . . Analyze 3 | . . 3 . . . Garrison Access Hacks . | . . . . . . Unauthorized Hacks 2 | . 1 1 . . . Terminals 1 | . . 1 . . . Botnet 1 | . . 1 . . . Fabricators . | . . . . . . Repair Stations . | . . . . . . Recycling Units 1 | . 1 . . . . Tunnel 1 | . 1 . . . . Scanalyzers . | . . . . . . Garrison Access . | . . . . . . Data Cores Recovered . | . . . . . . Used . | . . . . . . Hacking Detections 5 | . 1 4 . . . Full Trace Events . | . . . . . . Feedback Events . | . . . . . . Feedback Blocked . | . . . . . . Robot Schematics Acquired . | . . . . . . Robots Built . | . . . . . . Matter . | . . . . . . Time . | . . . . . . Total Robot Build Rating . | . . . . . . Part Schematics Acquired 2 | . . 2 . . . Parts Built . | . . . . . . Matter . | . . . . . . Time . | . . . . . . Total Part Build Rating . | . . . . . . Parts Repaired 1 | . . 1 . . . Time 26 | . . 26 . . . Parts Recycled . | . . . . . . Recycled Matter . | . . . . . . Retrieved Matter . | . . . . . . Retrieved Components . | . . . . . . Parts Scanalyzed 3 | . . 3 . . . Part Schematics Acquired 2 | . . 2 . . . Parts Damaged . | . . . . . . Bothacking | -11 -10 -9 -9 -9 -8 ------------ Run | Scr Mat Mat Min Exi Min Used RIF Installer . | . . . . . . Robots Hacked . | . . . . . . Non-combat . | . . . . . . Combat . | . . . . . . Robot Hacks Applied . | . . . . . . Relay Couplers Released . | . . . . . . Robots Rewired . | . . . . . . Allies Hacked . | . . . . . . Hacks Repelled . | . . . . . . Allies | -11 -10 -9 -9 -9 -8 -------- Run | Scr Mat Mat Min Exi Min Total Allies . | . . . . . . Largest Group . | . . . . . . Highest-Rated Group . | . . . . . . Highest-Rated Ally . | . . . . . . Total Orders . | . . . . . . Ally Attacks . | . . . . . . Total Damage . | . . . . . . Kills . | . . . . . . Allies Corrupted . | . . . . . . Allies Melted . | . . . . . . Intel | -11 -10 -9 -9 -9 -8 ------- Run | Scr Mat Mat Min Exi Min Robot Analysis Total . | . . . . . . Derelict Logs Recovered 2 | . . . 2 . . Drone Launches . | . . . . . . Drone Recoveries . | . . . . . . Exploration | -11 -10 -9 -9 -9 -8 ------------- Run | Scr Mat Mat Min Exi Min Turns Passed 3015 | 9 377 930 1195 492 12 Spaces Moved 1474 | 5 206 390 613 260 . Core . | . . . . . . Treads 1333 | 3 92 365 613 260 . Legs 2 | 2 . . . . . Wheels 139 | . 114 25 . . . Hover . | . . . . . . Flight . | . . . . . . Fastest Speed 100 | 120 100 100 160 180 . Average Speed 166 | 144 134 162 173 182 . Slowest Speed 200 | 160 180 180 180 200 . Overloaded Moves . | . . . . . . Propulsion Burnouts . | . . . . . . Robots Hopped . | . . . . . . Cave-ins Triggered . | . . . . . . Exploration Rate (%) 35 | 2 25 29 91 61 2 Regions Visited 5 Branch Regions 3 Pre-discovered Areas 2 | . 1 . 1 . . Known Exits Taken . | . . . . . . Unknown Exits Taken 5 | 1 1 1 1 1 . Scrap Searched 2 | . . . 2 . . Spaces Dug . | . . . . . . Terrain Destroyed 62 | . . . 28 34 . Melee . | . . . . . . Projectile . | . . . . . . AOE 62 | . . . 28 34 . Terrain Rammed . | . . . . . . Walls Destroyed . | . . . . . . Machines Disabled . | . . . . . . Actions | -11 -10 -9 -9 -9 -8 --------- Run | Scr Mat Mat Min Exi Min Total 1766 | 6 254 564 666 269 7 Wait 53 | . 9 42 2 . . Move 1469 | 4 205 389 612 259 . Hop . | . . . . . . Pick Up 31 | . 2 26 3 . . Fast Attach 9 | . 2 7 . . . Attach 13 | . 2 5 3 . 3 Detach . | . . . . . . Swap 18 | 2 6 8 1 . 1 Drop 26 | . 1 23 2 . . Fire 141 | . 26 63 39 10 3 Melee . | . . . . . . Ram 1 | . 1 . . . . Kick . | . . . . . . Crush 5 | . . 1 4 . . Escape Stasis . | . . . . . . Rewire . | . . . . . . Trap . | . . . . . . Miscellaneous . | . . . . . . Route ------- -11/Scrapyard -10/Materials -9/Materials (discovered 2 exits: [*Min x2]) -9/Mines (discovered 3 exits: [*Mat x2] / *Exi) -9/Exiles -8/Mines History --------- Turn | Location | Event 1 | -11/Scrapyard | Discovered new exit (range 2) 10 | -11/Scrapyard | Entered Materials 166 | -10/Materials | Discovered new exit (range 10) 310 | -10/Materials | Build established: Mutant 387 | -10/Materials | Entered another Materials area 387 | -9/Materials | Evolved 2 slots: Utility x2 426 | -9/Materials | Repaired Lgt. Treads 853 | -9/Materials | Discovered new exit (range 14) 1075 | -9/Materials | Discovered new exit (range 12) 1317 | -9/Materials | Entered Mines 1407 | -9/Mines | Received a Rocket Launcher from a helpful Derelict 1468 | -9/Mines | Discovered new exit (range 8) 1762 | -9/Mines | Learned location of Zion (-6) 1764 | -9/Mines | Learned 4 Materials zone layouts 1887 | -9/Mines | Deemed a non-threat by the Exiles lab entrance 1887 | -9/Mines | Discovered new exit (range 5) 2260 | -9/Mines | Discovered new exit (range 8) 2512 | -9/Mines | Entered Exiles 2561 | -9/Exiles | Met 8R-AWN 2588 | -9/Exiles | Met EX-HEX 2647 | -9/Exiles | Met EX-BIN 2745 | -9/Exiles | Aligned with FarCom system 2746 | -9/Exiles | Given EX-Vault access code 2788 | -9/Exiles | Opened EX-Vault 2838 | -9/Exiles | Warned to stay clear of 0b10 Research branches 2896 | -9/Exiles | Met EX-DEC 2911 | -9/Exiles | Attacked by the Exiles 2949 | -9/Exiles | Core integrity fell below 50% 2982 | -9/Exiles | Discovered new exit (range 11) 3004 | -9/Exiles | Entered Mines 3005 | -8/Mines | P1-3CE came to Exiles' defense 3012 | -8/Mines | Core integrity fell below 20% 3016 | -8/Mines | Destroyed by P1-3CE with P1-3CE's Gatling Flakker Last Messages --------------- 02944_ Lgt. Treads destroyed. 02944_ Destroyed Lgt. Treads. 02944_ as-86707 destroyed. 02946_ Machine disabled. 02950_ as-21772 destroyed. 02951_ The unstable cave ceiling collapses. 02982_ EXIT=FOUND A strange signal echoes through the mines. LOCATION=UNKNOWN GOAL=ESCAPE 03005_ P1-3CE: "I came as fast as I could... Wait, it was you!" 03006_ K-01 Serf collects debris. 03006_ Lgt. Treads destroyed. 03006_ Deuterium Engine destroyed. 03009_ K-01 Serf collects debris. 03010_ Imp. Assault Rifle destroyed. 03011_ Lgt. Treads destroyed. 03013_ Knocked back. 03015_ Imp. Assault Rifle destroyed. 03015_ Knocked back. Map ----- +----------------------------------------------------+ | | | | | | | | | | | | | | | | | | | | | | | | | | | | | | | | | ??????????????????????????????? | | ??????????????????????????????? | | ??????????????????????#######?? | | ??????????????????????# k #?? | | ??????????????????????# M #?? | | ???????????????????#### #?? | | ??????????????????## ##? | | ??????????????????# k ;#? | | ??????????????????# ## #?? | | ??????????????????????# @ #?? | | ??????????????????????#######?? | | ??????????????????????????????? | | ??????????????????????????????? | | ??????????????????????????????? | | ??????????????????????????????? | | ??????????????????????????????? | | ??????????????????????????????? | | ??????????????????????????????? | | ??????????????????????????????? | | ??????????????????????????????? | | ??????????????????????????????? | | ??????????????????????????????? | | ??????????????????????????????? | | ??????????????????????????????? | | ??????????????????????????????? | | ??????????????????????????????? | | ??????????????????????????????? | | ??????????????????????????????? | | ??????????????????????????????? | | ??????????????????????????????? | | ??????????????????????????????? | | ??????????????????????????????? | | ??????????????????????????????? | | ??????????????????????????????? | +----------------------------------------------------+ Best States ------------- Heat Dissipation 42 Energy Generation 14 Energy Capacity 275 Matter Stores 300 Matter Capacity 300 Sight Range 16 Terrain Scan Density 10 Utility Shielding 66 Evasion (%) 40 Recoil Reduction 2 Item Schematics ----------------- Imp. Utility Shielding | -9/Materials | Scanalyzed Adv. Signal Interpreter | -9/Materials | Scanalyzed Robot Schematics ------------------ None Fabricated ------------ Nothing Alien Tech Used ----------------- None Achievements -------------- None Challenges ------------ None Game ------ Seed ChipModifiedCasing Manual? 0 Play Time 00:17:04 Cumulative 191.7 hours Start 2021.02.22 @ 14:25:38 End 2021.02.22 @ 14:42:42 Sessions 2 Manual Loads 0 Difficulty Rogue Special Mode None Game No. 117 Rogue 117 Adventurer 0 Explorer 0 Win Type - Total 3 Types 3/0/0/0/0/0/0/0/0 Lore% 41 Gallery% 66 Achievement% 50 Wizard Run 0 Options --------- ASCII 0 Keyboard 0 Movement Mouse Keybinds 0 Fullscreen 2 Font 18/TerminusBold Map View 76x50 Tactical HUD 1 Map Filters NONE Filters NONE Steam 1 RUN: c9e1da3d-a4a1-44ec-b3ef-cd9c40f14703